fUSD/lending_fUSD_20250308
["ID","MTS","AMOUNT","RATE_DAILY","PERIOD"]
[355669955,1741450253122,-500.0,9.041e-05,2]
[355669956,1741450253131,-500.0,9.041e-05,2]
[355669957,1741450253140,-534.8,9.041e-05,2]
[355669958,1741450253150,-1049.79,9.041e-05,2]
[355669959,1741450253159,-860.21,9.041e-05,2]
[355669960,1741450253169,-976.28,9.041e-05,2]
[355669961,1741450253179,-500.0,9.041e-05,2]
[355669962,1741450253188,-859.81,9.041e-05,2]
[355669963,1741450253197,-500.0,9.041e-05,2]
[355669964,1741450253206,-500.0,9.041e-05,2]
[355669965,1741450253215,-500.0,9.041e-05,2]
[355669966,1741450253224,-573.05,9.041e-05,2]
[355669967,1741450253234,-500.0,9.041e-05,2]
[355669968,1741450253243,-1000.46,9.041e-05,2]
[355669969,1741450253252,-500.0,9.041e-05,2]
[355669970,1741450253262,-1201.81,9.041e-05,2]
[355669971,1741450253272,-500.0,9.041e-05,2]
[355669972,1741450253283,-608.51,9.041e-05,2]
[355669973,1741450253293,-1223.76,9.041e-05,2]
[355669974,1741450253303,-972.3,9.041e-05,2]
[355669975,1741450253312,-500.0,9.041e-05,2]
[355669976,1741450253322,-500.0,9.041e-05,2]
[355669977,1741450253332,-500.0,9.041e-05,2]
[355669978,1741450253341,-500.0,9.041e-05,2]
[355669979,1741450253350,-923.34,9.041e-05,2]
[355669980,1741450253363,-676.23,9.041e-05,2]
[355669981,1741450253372,-528.52,9.041e-05,2]
[355669982,1741450253381,-500.0,9.041e-05,2]
[355669983,1741450253392,-564.81,9.041e-05,2]
[355669984,1741450253402,-516.47,9.041e-05,2]
[355669985,1741450253411,-1192.68,9.041e-05,2]
[355669986,1741450253420,-628.26,9.041e-05,2]
[355669987,1741450253430,-500.0,9.041e-05,2]
[355669988,1741450253439,-764.96,9.041e-05,2]
[355669989,1741450253449,-1006.07,9.041e-05,2]
[355669990,1741450253458,-500.0,9.041e-05,2]
[355669991,1741450253467,-565.59,9.041e-05,2]
[355669992,1741450253476,-500.0,9.041e-05,2]
[355669993,1741450253484,-500.0,9.041e-05,2]
[355669994,1741450253494,-500.0,9.041e-05,2]
[355669995,1741450253503,-515.54,9.041e-05,2]
[355669996,1741450253512,-594.03,9.041e-05,2]
[355669997,1741450253520,-500.0,9.041e-05,2]
[355669998,1741450253529,-930.15,9.041e-05,2]
[355669999,1741450253538,-500.0,9.041e-05,2]
[355670000,1741450253547,-633.41,9.041e-05,2]
[355670001,1741450253558,-500.0,9.041e-05,2]
[355670002,1741450253567,-500.0,9.041e-05,2]
[355670003,1741450253577,-1209.92,9.041e-05,2]
[355670004,1741450253586,-773.96,9.041e-05,2]
[355670005,1741450253595,-500.0,9.041e-05,2]
[355670006,1741450253605,-2083.12,9.041e-05,2]
[355670007,1741450253613,-500.0,9.041e-05,2]
[355670008,1741450253623,-864.36,9.041e-05,2]
[355670009,1741450253632,-4992.7,9.041e-05,2]
[355670010,1741450253642,-594.4,9.041e-05,2]
[355670011,1741450253651,-627.02,9.041e-05,2]
[355670012,1741450253661,-851.99,9.041e-05,2]
[355670013,1741450253671,-1442.37,9.041e-05,2]
[355670014,1741450253680,-1003.48,9.041e-05,2]
[355670015,1741450253689,-5042.13,9.041e-05,2]
[355670016,1741450253698,-2121.73,9.041e-05,2]
[355670017,1741450253707,-500.0,9.041e-05,2]
[355670018,1741450253717,-879.88,9.041e-05,2]
[355670019,1741450253726,-4139.0,9.041e-05,2]
[355670020,1741450253736,-2225.22,9.041e-05,2]
[355670021,1741450253745,-2387.01,9.041e-05,2]
[355670022,1741450253756,-1387.09,9.041e-05,2]
[355670023,1741450253766,-500.0,9.041e-05,2]
[355670024,1741450253775,-500.0,9.041e-05,2]
[355670025,1741450253784,-500.0,9.041e-05,2]
[355670026,1741450253794,-1041.41,9.041e-05,2]
[355670027,1741450253804,-2411.52,9.041e-05,2]
[355670028,1741450253813,-644.99,9.041e-05,2]
[355670029,1741450253823,-500.0,9.041e-05,2]
[355670030,1741450253832,-500.0,9.041e-05,2]
[355670031,1741450253842,-1755.99,9.041e-05,2]
[355670032,1741450253852,-1615.13,9.041e-05,2]
[355670033,1741450253861,-1370.66,9.041e-05,2]
[355670034,1741450253871,-500.0,9.041e-05,2]
[355670035,1741450253880,-1657.53,9.041e-05,2]
[355670036,1741450253891,-500.0,9.041e-05,2]
[355670037,1741450253900,-1898.02,9.041e-05,2]
[355670038,1741450253910,-500.0,9.041e-05,2]
[355670039,1741450253920,-786.54,9.041e-05,2]
[355670040,1741450253930,-631.73,9.041e-05,2]
[355670041,1741450253939,-503.04,9.041e-05,2]
[355670042,1741450253949,-2515.6,9.041e-05,2]
[355670043,1741450253959,-500.0,9.041e-05,2]
[355670044,1741450253969,-1347.38,9.041e-05,2]
[355670045,1741450253979,-778.74,9.041e-05,2]
[355670046,1741450253989,-1222.18,9.041e-05,2]
[355670047,1741450253999,-1595.58,9.041e-05,2]
[355670048,1741450254009,-1606.44,9.041e-05,2]
[355670049,1741450254018,-2769.7,9.041e-05,2]
[355670050,1741450254028,-500.0,9.041e-05,2]
[355670051,1741450254038,-785.85,9.041e-05,2]
[355670052,1741450254048,-500.0,9.041e-05,2]
[355670053,1741450254059,-500.0,9.041e-05,2]
[355670054,1741450254070,-1497.11,9.041e-05,2]
[355670055,1741450254080,-1166.49,9.041e-05,2]
[355670056,1741450254090,-2219.69,9.041e-05,2]
[355670057,1741450254100,-2049.23,9.041e-05,2]
[355670058,1741450254110,-1357.3,9.041e-05,2]
[355670059,1741450254119,-500.0,9.041e-05,2]
[355670060,1741450254129,-500.0,9.041e-05,2]
[355670061,1741450254139,-500.0,9.041e-05,2]
[355670062,1741450254149,-6133.09,9.041e-05,2]
[355670063,1741450254160,-2171.47,9.041e-05,2]
[355670064,1741450254171,-2984.49,9.041e-05,2]
[355670065,1741450254181,-500.0,9.041e-05,2]
[355670066,1741450254191,-1037.89,9.041e-05,2]
[355670067,1741450254201,-867.84,9.041e-05,2]
[355670068,1741450254210,-500.0,9.041e-05,2]
[355670069,1741450254220,-1863.08,9.041e-05,2]
[355670070,1741450254230,-659.99,9.041e-05,2]
[355670071,1741450254240,-1075.32,9.041e-05,2]
[355670072,1741450254250,-3089.68,9.041e-05,2]
[355670073,1741450254261,-2187.41,9.041e-05,2]
[355670074,1741450254271,-572.79,9.041e-05,2]
[355670075,1741450254283,-5995.75,9.041e-05,2]
[355670076,1741450254292,-752.18,9.041e-05,2]
[355670077,1741450254303,-1319.49,9.041e-05,2]
[355670078,1741450254313,-1011.66,9.041e-05,2]
[355670079,1741450254324,-1350.39,9.041e-05,2]
[355670080,1741450254334,-1382.87,9.041e-05,2]
[355670081,1741450254344,-6919.1,9.041e-05,2]
[355670082,1741450254355,-567.75,9.041e-05,2]
[355670083,1741450254365,-604.0,9.041e-05,2]
[355670084,1741450254374,-1687.87,9.041e-05,2]
[355670085,1741450254384,-1157.52,9.041e-05,2]
[355670086,1741450254394,-789.79,9.041e-05,2]
[355670087,1741450254403,-887.2,9.041e-05,2]
[355670088,1741450254413,-2152.71,9.041e-05,2]
[355670089,1741450254423,-2756.22,9.041e-05,2]
[355670090,1741450254433,-872.98,9.041e-05,2]
[355670091,1741450254442,-341.73307501,9.041e-05,2]
[355670092,1741450254452,-3325.61,9.041e-05,2]
[355670093,1741450254462,-1306.31,9.041e-05,2]
[355670094,1741450254473,-12011.57,9.041e-05,2]
[355670095,1741450254482,-2363.22,9.041e-05,2]
[355670096,1741450254492,-1257.23,9.041e-05,2]
[355670097,1741450254502,-1805.35,9.041e-05,2]
[355670098,1741450254512,-500.0,9.041e-05,2]
[355670099,1741450254522,-500.0,9.041e-05,2]
[355670100,1741450254533,-1413.01,9.041e-05,2]
[355670101,1741450254544,-2989.51,9.041e-05,2]
[355670102,1741450254555,-935.65,9.041e-05,2]
[355670103,1741450254564,-747.04,9.041e-05,2]
[355670104,1741450254575,-721.1,9.041e-05,2]
[355670105,1741450254585,-1813.66,9.041e-05,2]
[355670106,1741450254598,-500.0,9.041e-05,2]
[355670107,1741450254611,-11444.74,9.041e-05,2]
[355670108,1741450254622,-2830.5,9.041e-05,2]
[355670109,1741450254632,-1286.66,9.041e-05,2]
[355670110,1741450254642,-2528.21,9.041e-05,2]
[355670111,1741450254652,-1510.82,9.041e-05,2]
[355670112,1741450254662,-1264.6,9.041e-05,2]
[355670113,1741450254671,-500.0,9.041e-05,2]
[355670114,1741450254682,-689.64,9.041e-05,2]
[355670115,1741450254691,-2233.02,9.041e-05,2]
[355670116,1741450254701,-500.0,9.041e-05,2]
[355670117,1741450254711,-500.0,9.041e-05,2]
[355670118,1741450254721,-2773.87,9.041e-05,2]
[355670119,1741450254731,-1618.72,9.041e-05,2]
[355670120,1741450254741,-500.0,9.041e-05,2]
[355670121,1741450254750,-1021.66,9.041e-05,2]
[355670122,1741450254760,-620.61,9.041e-05,2]
[355670123,1741450254770,-3122.98,9.041e-05,2]
[355670124,1741450254779,-913.18,9.041e-05,2]
[355670125,1741450254789,-610.59,9.041e-05,2]
[355670126,1741450254799,-5945.69,9.041e-05,2]
[355670127,1741450254810,-500.0,9.041e-05,2]
[355670128,1741450254820,-500.0,9.041e-05,2]
[355670129,1741450254829,-860.34,9.041e-05,2]
[355670130,1741450254839,-942.29,9.041e-05,2]
[355670131,1741450254849,-4818.15,9.041e-05,2]
[355670132,1741450254859,-500.0,9.041e-05,2]
[355670133,1741450254869,-500.0,9.041e-05,2]
[355670134,1741450254880,-500.0,9.041e-05,2]
[355670135,1741450254890,-5476.0,9.041e-05,2]
[355670136,1741450254899,-723.51,9.041e-05,2]
[355670137,1741450254909,-1402.52,9.041e-05,2]
[355670138,1741450254919,-3055.95,9.041e-05,2]
[355670139,1741450254929,-500.0,9.041e-05,2]
[355670140,1741450254939,-3991.9,9.041e-05,2]
[355670141,1741450254949,-1339.53,9.041e-05,2]
[355670142,1741450254959,-2276.46,9.041e-05,2]
[355670143,1741450254969,-27669.71,9.041e-05,2]
[355670144,1741450254980,-921.69,9.041e-05,2]
[355670145,1741450254990,-779.56,9.041e-05,2]
[355670146,1741450255000,-500.0,9.041e-05,2]
[355670147,1741450255010,-1165.23,9.041e-05,2]
[355670148,1741450255020,-6567.26,9.041e-05,2]
[355670149,1741450255029,-500.0,9.041e-05,2]
[355670150,1741450255039,-2129.6,9.041e-05,2]
[355670151,1741450255049,-500.0,9.041e-05,2]
[355670152,1741450255059,-500.0,9.041e-05,2]
[355670153,1741450255069,-1661.91,9.041e-05,2]
[355670154,1741450255079,-1498.0,9.106e-05,2]
[355670155,1741450255089,-3456.85,9.188e-05,2]
[355670156,1741450255099,-18642.08,9.188e-05,2]
[355670157,1741450255108,-500.0,9.188e-05,2]
[355670158,1741450255118,-900.26,9.188e-05,2]
[355670159,1741450255128,-506.89,9.188e-05,2]
[355670160,1741450255138,-1590.98,9.188e-05,2]
[355670161,1741450255148,-3349.73,9.188e-05,2]
[355670162,1741450255158,-1213.55,9.188e-05,2]
[355670163,1741450255168,-4631.77,9.188e-05,2]
[355670164,1741450255178,-3584.31,9.188e-05,2]
[355670165,1741450255189,-2586.02,9.188e-05,2]
[355670166,1741450255199,-1313.25,9.188e-05,2]
[355670167,1741450255209,-500.0,9.188e-05,2]
[355670168,1741450255219,-3465.88,9.188e-05,2]
[355670169,1741450255228,-6170.14,9.188e-05,2]
[355670170,1741450255239,-2896.99,9.188e-05,2]
[355670171,1741450255249,-1000.0,9.247e-05,2]
[355670172,1741450255259,-500.0,9.315e-05,2]
[355670173,1741450255269,-500.0,9.315e-05,2]
[355670174,1741450255282,-500.0,9.315e-05,2]
[355670175,1741450255291,-500.0,9.315e-05,2]
[355670176,1741450255301,-500.0,9.315e-05,2]
[355670177,1741450255311,-500.0,9.315e-05,2]
[355670178,1741450255321,-500.0,9.315e-05,2]
[355670179,1741450255333,-500.0,9.315e-05,2]
[355670180,1741450255343,-500.0,9.315e-05,2]
[355670181,1741450255353,-500.0,9.315e-05,2]
[355670182,1741450255364,-623.78,9.315e-05,2]
[355670183,1741450255375,-500.0,9.315e-05,2]
[355670184,1741450255385,-735.61,9.315e-05,2]
[355670185,1741450255395,-500.0,9.315e-05,2]
[355670186,1741450255404,-500.0,9.315e-05,2]
[355670187,1741450255415,-500.0,9.315e-05,2]
[355670188,1741450255424,-500.0,9.315e-05,2]
[355670189,1741450255434,-500.0,9.315e-05,2]
[355670190,1741450255443,-500.0,9.315e-05,2]
[355670191,1741450255453,-500.0,9.315e-05,2]
[355670192,1741450255465,-500.0,9.315e-05,2]
[355670193,1741450255479,-500.0,9.315e-05,2]
[355670194,1741450255491,-536.09,9.315e-05,2]
[355670195,1741450255501,-500.0,9.315e-05,2]
[355670196,1741450255511,-500.0,9.315e-05,2]
[355670197,1741450255521,-500.0,9.315e-05,2]
[355670198,1741450255531,-500.0,9.315e-05,2]
[355670199,1741450255541,-500.0,9.315e-05,2]
[355670200,1741450255551,-500.0,9.315e-05,2]
[355670201,1741450255561,-500.0,9.315e-05,2]
[355670202,1741450255571,-500.0,9.315e-05,2]
[355670203,1741450255581,-500.0,9.315e-05,2]
[355670204,1741450255592,-500.0,9.315e-05,2]
[355670205,1741450255602,-500.0,9.315e-05,2]
[355670206,1741450255613,-500.0,9.315e-05,2]
[355670207,1741450255623,-500.0,9.315e-05,2]
[355670208,1741450255634,-611.2,9.315e-05,2]
[355670209,1741450255645,-500.0,9.315e-05,2]
[355670210,1741450255656,-500.0,9.315e-05,2]
[355670211,1741450255666,-500.0,9.315e-05,2]
[355670212,1741450255677,-500.0,9.315e-05,2]
[355670213,1741450255690,-500.0,9.315e-05,2]
[355670214,1741450255701,-500.0,9.315e-05,2]
[355670215,1741450255712,-598.25,9.315e-05,2]
[355670216,1741450255722,-500.0,9.315e-05,2]
[355670217,1741450255733,-801.86,9.315e-05,2]
[355670218,1741450255744,-500.0,9.315e-05,2]
[355670219,1741450255754,-500.0,9.315e-05,2]
[355670220,1741450255764,-563.45,9.315e-05,2]
[355670221,1741450255774,-500.0,9.315e-05,2]
[355670222,1741450255784,-631.96,9.315e-05,2]
[355670223,1741450255794,-500.0,9.315e-05,2]
[355670224,1741450255804,-786.33,9.315e-05,2]
[355670225,1741450255815,-500.0,9.315e-05,2]
[355670226,1741450255824,-585.65,9.315e-05,2]
[355670227,1741450255834,-500.0,9.315e-05,2]
[355670228,1741450255844,-559.71,9.315e-05,2]
[355670229,1741450255854,-500.0,9.315e-05,2]
[355670230,1741450255864,-500.0,9.315e-05,2]
[355670231,1741450255874,-500.0,9.315e-05,2]
[355670232,1741450255884,-500.0,9.315e-05,2]
[355670233,1741450255894,-570.31,9.315e-05,2]
[355670234,1741450255904,-500.0,9.315e-05,2]
[355670235,1741450255915,-500.0,9.315e-05,2]
[355670236,1741450255925,-500.0,9.315e-05,2]
[355670237,1741450255935,-674.8,9.315e-05,2]
[355670238,1741450255945,-500.0,9.315e-05,2]
[355670239,1741450255955,-500.0,9.315e-05,2]
[355670240,1741450255966,-500.0,9.315e-05,2]
[355670241,1741450255976,-875.54,9.315e-05,2]
[355670242,1741450255987,-500.0,9.315e-05,2]
[355670243,1741450255997,-697.96,9.315e-05,2]
[355670244,1741450256007,-500.0,9.315e-05,2]
[355670245,1741450256017,-500.0,9.315e-05,2]
[355670246,1741450256028,-500.0,9.315e-05,2]
[355670247,1741450256038,-500.0,9.315e-05,2]
[355670248,1741450256048,-500.0,9.315e-05,2]
[355670249,1741450256059,-828.33,9.315e-05,2]
[355670250,1741450256069,-500.0,9.315e-05,2]
[355670251,1741450256079,-500.0,9.315e-05,2]
[355670252,1741450256089,-554.2,9.315e-05,2]
[355670253,1741450256099,-500.0,9.315e-05,2]
[355670254,1741450256109,-500.0,9.315e-05,2]
[355670255,1741450256119,-500.0,9.315e-05,2]
[355670256,1741450256129,-500.0,9.315e-05,2]
[355670257,1741450256140,-500.0,9.315e-05,2]
[355670258,1741450256150,-511.03,9.315e-05,2]
[355670259,1741450256160,-602.41,9.315e-05,2]
[355670260,1741450256171,-500.0,9.315e-05,2]
[355670261,1741450256182,-500.0,9.315e-05,2]
[355670262,1741450256397,-500.0,9.315e-05,2]
[355670263,1741450256408,-500.0,9.315e-05,2]
[355670264,1741450256418,-500.0,9.315e-05,2]
[355670265,1741450256429,-567.16,9.315e-05,2]
[355670266,1741450256439,-500.0,9.315e-05,2]
[355670267,1741450256448,-500.0,9.315e-05,2]
[355670268,1741450256458,-500.0,9.315e-05,2]
[355670269,1741450256468,-500.0,9.315e-05,2]
[355670270,1741450256478,-500.0,9.315e-05,2]
[355670271,1741450256490,-716.52,9.315e-05,2]
[355670272,1741450256500,-516.17,9.315e-05,2]
[355670273,1741450256510,-555.84,9.315e-05,2]
[355670274,1741450256520,-238.4,9.315e-05,2]
[355670275,1741450256531,-654.94,9.315e-05,2]
[355670276,1741450256541,-500.0,9.315e-05,2]
[355670277,1741450256551,-611.173404,9.315e-05,2]
[355670278,1741450256563,-842.65,9.315e-05,2]
[355670279,1741450256573,-500.0,9.315e-05,2]
[355670280,1741450256584,-774.84,9.315e-05,2]
[355670281,1741450256594,-962.59,9.315e-05,2]
[355670282,1741450256604,-500.0,9.315e-05,2]
[355670283,1741450256614,-500.0,9.315e-05,2]
[355670284,1741450256623,-500.0,9.315e-05,2]
[355670285,1741450256633,-500.0,9.315e-05,2]
[355670286,1741450256642,-500.0,9.315e-05,2]
[355670287,1741450256652,-500.0,9.315e-05,2]
[355670288,1741450256662,-203.44251826,9.315e-05,2]
[355670289,1741450256672,-500.0,9.315e-05,2]
[355670290,1741450256682,-709.03,9.315e-05,2]
[355670291,1741450256691,-500.0,9.315e-05,2]
[355670292,1741450256701,-393.282689,9.315e-05,2]
[355670293,1741450256717,-1001.97,9.315e-05,2]
[355670294,1741450256727,-500.0,9.315e-05,2]
[355670295,1741450256737,-500.0,9.315e-05,2]
[355670296,1741450256747,-500.0,9.315e-05,2]
[355670297,1741450256757,-403.60462417,9.315e-05,2]
[355670298,1741450256766,-864.87,9.315e-05,2]
[355670299,1741450256775,-834.37,9.315e-05,2]
[355670300,1741450256785,-500.0,9.315e-05,2]
[355670301,1741450256795,-500.0,9.315e-05,2]
[355670302,1741450256804,-534.8,9.315e-05,2]
[355670303,1741450256814,-1049.79,9.315e-05,2]
[355670304,1741450256826,-860.21,9.315e-05,2]
[355670305,1741450256836,-976.28,9.315e-05,2]
[355670306,1741450256845,-151.0,9.315e-05,2]
[355670307,1741450256855,-500.0,9.315e-05,2]
[355670308,1741450256864,-151.0,9.315e-05,2]
[355670309,1741450256874,-859.81,9.315e-05,2]
[355670310,1741450256883,-151.0,9.315e-05,2]
[355670311,1741450256893,-151.0,9.315e-05,2]
[355670312,1741450256903,-151.0,9.315e-05,2]
[355670313,1741450256913,-151.0,9.315e-05,2]
[355670314,1741450256922,-151.0,9.315e-05,2]
[355670315,1741450256933,-151.0,9.315e-05,2]
[355670316,1741450256944,-151.0,9.315e-05,2]
[355670317,1741450256953,-500.0,9.315e-05,2]
[355670318,1741450256963,-151.0,9.315e-05,2]
[355670319,1741450256973,-151.0,9.315e-05,2]
[355670320,1741450256984,-151.0,9.315e-05,2]
[355670321,1741450256994,-500.0,9.315e-05,2]
[355670322,1741450257004,-151.0,9.315e-05,2]
[355670323,1741450257014,-151.0,9.315e-05,2]
[355670324,1741450257024,-151.0,9.315e-05,2]
[355670325,1741450257034,-151.0,9.315e-05,2]
[355670326,1741450257044,-151.0,9.315e-05,2]
[355670327,1741450257054,-151.0,9.315e-05,2]
[355670328,1741450257064,-151.0,9.315e-05,2]
[355670329,1741450257073,-151.0,9.315e-05,2]
[355670330,1741450257083,-500.0,9.315e-05,2]
[355670331,1741450257092,-151.0,9.315e-05,2]
[355670332,1741450257102,-151.0,9.315e-05,2]
[355670333,1741450257111,-151.0,9.315e-05,2]
[355670334,1741450257121,-151.0,9.315e-05,2]
[355670335,1741450257131,-151.0,9.315e-05,2]
[355670336,1741450257141,-151.0,9.315e-05,2]
[355670337,1741450257151,-151.0,9.315e-05,2]
[355670338,1741450257160,-151.0,9.315e-05,2]
[355670339,1741450257170,-151.0,9.315e-05,2]
[355670340,1741450257179,-151.0,9.315e-05,2]
[355670341,1741450257189,-151.0,9.315e-05,2]
[355670342,1741450257199,-151.0,9.315e-05,2]
[355670343,1741450257208,-151.0,9.315e-05,2]
[355670344,1741450257217,-151.0,9.315e-05,2]
[355670345,1741450257227,-151.0,9.315e-05,2]
[355670346,1741450257237,-573.05,9.315e-05,2]
[355670347,1741450257246,-151.0,9.315e-05,2]
[355670348,1741450257256,-500.0,9.315e-05,2]
[355670349,1741450257266,-1000.46,9.315e-05,2]
[355670350,1741450257278,-500.0,9.315e-05,2]
[355670351,1741450257290,-151.0,9.315e-05,2]
[355670352,1741450257300,-151.0,9.315e-05,2]
[355670353,1741450257310,-151.0,9.315e-05,2]
[355670354,1741450257320,-151.0,9.315e-05,2]
[355670355,1741450257330,-151.0,9.315e-05,2]
[355670356,1741450257340,-1201.81,9.315e-05,2]
[355670357,1741450257350,-151.0,9.315e-05,2]
[355670358,1741450257362,-151.0,9.315e-05,2]
[355670359,1741450257372,-151.0,9.315e-05,2]
[355670360,1741450257382,-151.0,9.315e-05,2]
[355670361,1741450257391,-151.0,9.315e-05,2]
[355670362,1741450257401,-151.0,9.315e-05,2]
[355670363,1741450257411,-151.0,9.315e-05,2]
[355670364,1741450257420,-151.0,9.315e-05,2]
[355670365,1741450257430,-500.0,9.315e-05,2]
[355670366,1741450257440,-211.81267376,9.315e-05,2]
[355670367,1741450257449,-608.51,9.315e-05,2]
[355670368,1741450257459,-1223.76,9.315e-05,2]
[355670369,1741450257469,-972.3,9.315e-05,2]
[355670370,1741450257479,-500.0,9.315e-05,2]
[355670371,1741450257489,-500.0,9.315e-05,2]
[355670372,1741450257498,-500.0,9.315e-05,2]
[355670373,1741450257508,-500.0,9.315e-05,2]
[355670374,1741450257519,-923.34,9.315e-05,2]
[355670375,1741450257528,-676.23,9.315e-05,2]
[355670376,1741450257538,-528.52,9.315e-05,2]
[355670377,1741450257548,-500.0,9.315e-05,2]
[355670378,1741450257557,-564.81,9.315e-05,2]
[355670379,1741450257567,-516.47,9.315e-05,2]
[355670380,1741450257577,-1192.68,9.315e-05,2]
[355670381,1741450257586,-628.26,9.315e-05,2]
[355670382,1741450257596,-500.0,9.315e-05,2]
[355670383,1741450257605,-764.96,9.315e-05,2]
[355670384,1741450257615,-1006.07,9.315e-05,2]
[355670385,1741450257624,-500.0,9.315e-05,2]
[355670386,1741450257634,-565.59,9.315e-05,2]
[355670387,1741450257644,-500.0,9.315e-05,2]
[355670388,1741450257653,-500.0,9.315e-05,2]
[355670389,1741450257663,-500.0,9.315e-05,2]
[355670390,1741450257673,-515.54,9.315e-05,2]
[355670391,1741450257683,-594.03,9.315e-05,2]
[355670392,1741450257692,-500.0,9.315e-05,2]
[355670393,1741450257702,-930.15,9.315e-05,2]
[355670394,1741450257712,-500.0,9.315e-05,2]
[355670395,1741450257722,-633.41,9.315e-05,2]
[355670396,1741450257747,-500.0,9.315e-05,2]
[355670397,1741450257757,-500.0,9.315e-05,2]
[355670398,1741450257778,-1209.92,9.315e-05,2]
[355670399,1741450257788,-773.96,9.315e-05,2]
[355670400,1741450257797,-500.0,9.315e-05,2]
[355670401,1741450257807,-2083.12,9.315e-05,2]
[355670402,1741450257817,-470.15187479,9.315e-05,2]
[355670403,1741450257827,-864.36,9.315e-05,2]
[355670404,1741450257837,-4992.7,9.315e-05,2]
[355670405,1741450257847,-594.4,9.315e-05,2]
[355670406,1741450257856,-627.02,9.315e-05,2]
[355670407,1741450257866,-851.99,9.315e-05,2]
[355670408,1741450257875,-1442.37,9.315e-05,2]
[355670409,1741450257884,-1003.48,9.315e-05,2]
[355670410,1741450257894,-5042.13,9.315e-05,2]
[355670411,1741450257904,-2121.73,9.315e-05,2]
[355670412,1741450257914,-500.0,9.315e-05,2]
[355670413,1741450257924,-879.88,9.315e-05,2]
[355670414,1741450257933,-4139.0,9.315e-05,2]
[355670415,1741450257943,-2225.22,9.315e-05,2]
[355670416,1741450257954,-2387.01,9.315e-05,2]
[355670417,1741450257964,-1387.09,9.315e-05,2]
[355670418,1741450257973,-500.0,9.315e-05,2]
[355670419,1741450257983,-500.0,9.315e-05,2]
[355670420,1741450257993,-500.0,9.315e-05,2]
[355670421,1741450258002,-1041.41,9.315e-05,2]
[355670422,1741450258013,-2411.52,9.315e-05,2]
[355670423,1741450258023,-644.99,9.315e-05,2]
[355670424,1741450258032,-500.0,9.315e-05,2]
[355670425,1741450258042,-500.0,9.315e-05,2]
[355670426,1741450258052,-1755.99,9.315e-05,2]
[355670427,1741450258062,-1615.13,9.315e-05,2]
[355670428,1741450258072,-1370.66,9.315e-05,2]
[355670429,1741450258082,-500.0,9.315e-05,2]
[355670430,1741450258091,-1657.53,9.315e-05,2]
[355670431,1741450258101,-500.0,9.315e-05,2]
[355670432,1741450258111,-1898.02,9.315e-05,2]
[355670433,1741450258121,-500.0,9.315e-05,2]
[355670434,1741450258131,-786.54,9.315e-05,2]
[355670435,1741450258141,-631.73,9.315e-05,2]
[355670436,1741450258151,-503.04,9.315e-05,2]
[355670437,1741450258162,-2515.6,9.315e-05,2]
[355670438,1741450258172,-500.0,9.315e-05,2]
[355670439,1741450258183,-1347.38,9.315e-05,2]
[355670440,1741450258192,-778.74,9.315e-05,2]
[355670441,1741450258217,-1222.18,9.315e-05,2]
[355670442,1741450258227,-1595.58,9.315e-05,2]
[355670443,1741450258238,-1606.44,9.315e-05,2]
[355670444,1741450258248,-2769.7,9.315e-05,2]
[355670445,1741450258258,-500.0,9.315e-05,2]
[355670446,1741450258269,-785.85,9.315e-05,2]
[355670447,1741450258280,-500.0,9.315e-05,2]
[355670448,1741450258293,-500.0,9.315e-05,2]
[355670449,1741450258304,-1497.11,9.315e-05,2]
[355670450,1741450258315,-1166.49,9.315e-05,2]
[355670451,1741450258326,-2219.69,9.315e-05,2]
[355670452,1741450258337,-2049.23,9.315e-05,2]
[355670453,1741450258350,-1357.3,9.315e-05,2]
[355670454,1741450258365,-500.0,9.315e-05,2]